bitfinex/quotes_SOLUSD_20260114
["timestamp","ask_amount","ask_price","bid_price","bid_amount"]
[1768352408608,6.90035881,144.92,144.88,0.68489966]
[1768352408820,21.44666696,144.96,144.9,0.68489966]
[1768352409007,3.99820673,144.95,144.91,12.58]
[1768352410221,10.89760835,144.95,144.91,12.58]
[1768352411028,10.89760835,144.95,144.89,4.68310639]
[1768352411029,7.99641346,144.92,144.8,4.88310639]
[1768352411194,133.12663935,144.94,144.81,0.68489966]
[1768352411195,3.99820673,144.85,144.81,0.68489966]
[1768352411396,3.99820673,144.86,144.81,0.68489966]
[1768352412122,3.99820673,144.82,144.78,0.68489966]
[1768352412300,3.99820673,144.83,144.75,1e-08]
[1768352412492,0.099,144.81,144.75,1e-08]
[1768352413898,3.99820673,144.8,144.75,1e-08]
[1768352414221,6.90607734,144.8,144.75,1e-08]
[1768352414420,3.99820673,144.79,144.75,1e-08]
[1768352415219,3.99820673,144.78,144.75,1e-08]
[1768352415718,3.99820673,144.78,144.73,13.26489966]
[1768352416220,10.90553967,144.78,144.73,13.26489966]
[1768352416601,10.90553967,144.78,144.74,0.68489966]
[1768352417816,3.99820673,144.76,144.72,0.68489966]
[1768352418196,10.90657308,144.76,144.72,0.68489966]
[1768352418620,3.96820673,144.75,144.72,0.68489966]
[1768352418819,3.93820673,144.75,144.72,0.68489966]
[1768352419215,3.99820673,144.75,144.72,0.68489966]
[1768352420424,3.99820673,144.76,144.72,0.68489966]
[1768352421719,10.90575354,144.77,144.72,0.68489966]
[1768352422330,10.9053869,144.78,144.73,0.66230044]
[1768352423199,3.99820673,144.78,144.73,0.66230044]
[1768352423729,10.90526002,144.78,144.73,0.66230044]
[1768352425215,3.99820673,144.77,144.73,0.66230044]
[1768352425520,3.99820673,144.78,144.74,0.66230044]
[1768352426209,3.99820673,144.77,144.74,0.66230044]
[1768352432325,10.90603436,144.77,144.74,0.66230044]
[1768352432528,3.99820673,144.76,144.74,0.66230044]
[1768352432723,3.96820673,144.76,144.74,0.66230044]
[1768352433726,3.96820673,144.76,144.71,0.2]
[1768352433928,7.03589474,144.77,144.71,0.86230044]
[1768352433929,3.99820673,144.74,144.71,0.86230044]
[1768352434932,11.040263,144.75,144.71,0.86230044]
[1768352435426,3.99820673,144.75,144.72,0.70324236]
[1768352435632,6.90717321,144.78,144.72,0.70324236]
[1768352435809,3.99820673,144.77,144.72,0.70324236]
[1768352436209,10.90537994,144.78,144.72,0.70324236]
[1768352436711,6.90717321,144.78,144.74,0.70324236]
[1768352436915,3.99820673,144.8,144.74,0.70324236]
[1768352437236,3.99820673,144.79,144.74,0.70324236]
[1768352438029,10.9047638,144.79,144.75,0.70324236]
[1768352439529,10.90428407,144.8,144.75,0.70324236]
[1768352439727,10.90428407,144.8,144.76,0.70324236]
[1768352440324,3.99820673,144.8,144.76,0.70324236]
[1768352440631,10.90397699,144.81,144.76,0.70324236]
[1768352441624,10.90397699,144.81,144.77,0.70324236]
[1768352441828,3.99820673,144.84,144.79,0.70324236]
[1768352442124,24.83917024,144.89,144.81,0.70324236]
[1768352442330,0.10975721,144.86,144.81,4.70144909]
[1768352442531,3.99820673,144.87,144.82,0.70324236]
[1768352443322,3.99820673,144.87,144.83,0.70324236]
[1768352443535,4.10223985,144.87,144.83,0.70324236]
[1768352443717,3.99820673,144.87,144.83,0.70324236]
[1768352443918,10.90089729,144.88,144.83,0.70324236]
[1768352446341,10.90089729,144.88,144.84,0.70324236]
[1768352446528,10.90089729,144.88,144.84,0.64324236]
[1768352447221,11.06433041,144.88,144.84,0.64324236]
[1768352448838,11.06433041,144.88,144.82,24.18644472]
[1768352449038,11.06433041,144.88,144.83,0.70324236]
[1768352450235,10.90122714,144.87,144.83,0.70324236]
[1768352452838,6.90302041,144.87,144.83,0.70324236]
[1768352455843,11.578263,144.87,144.83,0.64324236]
[1768352456142,11.578263,144.87,144.83,0.58324236]
[1768352459422,11.578263,144.87,144.83,0.52324236]
[1768352460353,0.67703586,144.87,144.83,0.52324236]
[1768352460525,3.99820673,144.89,144.83,10.90268127]
[1768352460725,4.6804305,144.9,144.83,10.90268127]
[1768352460937,4.6804305,144.9,144.84,3.99820673]
[1768352461340,104.2,144.91,144.87,0.70324236]
[1768352461535,0.1,144.92,144.87,0.70324236]
[1768352461924,4.33983985,144.91,144.87,0.70324236]
[1768352463237,0.34163312,144.91,144.87,0.70324236]
[1768352464046,7.2425343,144.91,144.87,0.70324236]
[1768352464429,11.24074103,144.91,144.87,0.70324236]
[1768352464947,7.2425343,144.91,144.87,0.70324236]
[1768352465249,11.24074103,144.91,144.87,0.70324236]
[1768352467025,7.2425343,144.91,144.87,0.70324236]
[1768352467552,7.2425343,144.91,144.87,7.60594702]
[1768352468650,7.2425343,144.91,144.87,0.70324236]
[1768352469946,0.1,144.92,144.9,0.67134193]
[1768352470133,111.80692568,144.95,144.92,1.373e-05]
[1768352470332,7.60692568,144.95,144.9,2.55870723]
[1768352470553,0.70786983,144.94,144.9,9.45984531]
[1768352472137,0.70786983,144.94,144.9,10.13118724]
[1768352472849,0.70786983,144.96,144.92,5.18e-06]
[1768352473148,0.70786983,144.96,144.91,2.55870723]
[1768352473759,0.70786983,144.96,144.92,2.55870723]
[1768352474054,0.70786983,144.96,144.91,2.55870723]
[1768352474427,0.70786983,144.94,144.89,19.4815867]
[1768352474632,0.70786983,144.93,144.89,12.58]
[1768352474853,0.70786983,144.93,144.89,20.01172145]
[1768352476048,3.26657706,144.9,144.87,6.9025307]
[1768352476356,3.26657706,144.9,144.86,7.43303313]
[1768352476951,0.70786983,144.9,144.86,7.43303313]
[1768352477148,7.60876505,144.91,144.87,0.53002214]
[1768352477349,0.66419804,144.87,144.82,0.53002214]
[1768352477558,0.66419804,144.85,144.8,42.5098072]
[1768352477748,0.66419804,144.84,144.8,55.0898072]
[1768352478447,3.22290527,144.85,144.8,61.99574871]
[1768352478645,3.22290527,144.84,144.8,55.0898072]
[1768352478849,0.66419804,144.84,144.8,55.0898072]
[1768352479249,0.66419804,144.84,144.8,54.49978506]
[1768352479250,10.12715091,144.84,144.8,54.49978506]
[1768352479450,0.66419804,144.83,144.8,54.49978506]
[1768352480962,0.66419804,144.84,144.8,61.40570392]
[1768352481351,7.5685206,144.84,144.8,54.49978506]
[1768352481564,0.66419804,144.84,144.8,61.40575892]
[1768352481764,0.66419804,144.84,144.8,61.93578106]
[1768352482665,10.12716719,144.84,144.8,55.0298072]
[1768352483065,0.66419804,144.84,144.8,61.93578023]
[1768352485152,0.66419804,144.8,144.76,0.53002214]
[1768352485357,3.22290527,144.79,144.71,16.37729051]
[1768352485663,3.22290527,144.78,144.72,0.53002214]
[1768352485869,3.22290527,144.79,144.73,0.53002214]
[1768352486056,0.66419804,144.78,144.73,0.53002214]
[1768352486457,3.22290527,144.79,144.75,0.53002214]
[1768352487564,0.66419804,144.79,144.75,0.53002214]
[1768352487770,3.22290527,144.79,144.75,0.53002214]
[1768352488354,2.55870723,144.78,144.74,7.43893731]
[1768352488559,3.22290527,144.79,144.74,7.43893731]
[1768352488766,3.22290527,144.79,144.75,6.90843586]
[1768352489277,0.66419804,144.81,144.76,0.53002214]
[1768352489448,3.22290527,144.81,144.76,0.53002214]
[1768352489645,3.22290527,144.81,144.76,7.43787155]
[1768352489869,10.12856615,144.81,144.76,7.43787155]
[1768352490069,3.22290527,144.77,144.75,12.58]
[1768352490375,0.66419804,144.78,144.75,12.58]
[1768352491270,0.66419804,144.76,144.72,20.01980326]
[1768352492269,3.22290527,144.77,144.73,0.53002214]
[1768352492662,111.76950114,144.82,144.76,0.53002214]
[1768352492983,0.66419804,144.84,144.78,0.53002214]
[1768352493177,3.22290527,144.83,144.78,0.53002214]
[1768352493359,0.66419804,144.82,144.76,0.53002214]
[1768352493884,0.66419804,144.82,144.77,7.4375306]
[1768352494260,0.66419804,144.82,144.78,0.53002214]
[1768352494654,0.66419804,144.83,144.79,12.58]
[1768352495769,0.66419804,144.83,144.79,13.11002214]
[1768352496692,0.66419804,144.83,144.79,20.01625818]
[1768352497382,30.42739135,144.85,144.8,0.53002214]
[1768352497671,27.86868412,144.85,144.8,0.53002214]
[1768352498869,27.86868412,144.85,144.8,7.43577225]
[1768352499064,27.18958249,144.85,144.82,0.53002214]
[1768352499267,0.67910163,144.88,144.84,0.53002214]
[1768352499472,0.67910163,144.88,144.83,12.58]
[1768352499675,0.67910163,144.87,144.83,12.58]
[1768352500577,0.67910163,144.87,144.83,19.48453701]
[1768352505484,0.67910163,144.87,144.83,20.01455915]
[1768352506079,0.67910163,144.87,144.83,19.48453701]
[1768352506877,0.67910163,144.87,144.83,20.01455915]
[1768352507981,0.67910163,144.87,144.83,19.48453701]
[1768352508286,0.67910163,144.87,144.83,20.01455915]
[1768352511076,0.67910163,144.86,144.83,12.58]
[1768352511974,0.67910163,144.85,144.79,0.53002214]
[1768352512173,0.67910163,144.86,144.81,0.66542009]
[1768352512774,0.67910163,144.85,144.81,0.66542009]
[1768352513177,7.58292043,144.85,144.81,0.66542009]
[1768352513771,0.67910163,144.84,144.8,20.1512293]
[1768352514091,0.67910163,144.84,144.8,20.15147379]
[1768352514285,10.14119011,144.86,144.81,7.57093997]
[1768352514679,0.67910163,144.85,144.81,7.57093997]
[1768352514878,0.67910163,144.84,144.8,20.15134206]
[1768352515304,0.67910163,144.84,144.8,13.24542009]
[1768352515601,0.67910163,144.86,144.82,3.22412732]
[1768352516110,0.67910163,144.87,144.83,0.66542009]
[1768352516276,0.67910163,144.91,144.87,0.66542009]
[1768352516474,0.67910163,144.91,144.87,3.16412732]
[1768352516795,0.67910163,144.93,144.87,2.55870723]
[1768352516994,0.67910163,144.93,144.88,6.90226394]
[1768352517588,0.67910163,144.92,144.88,6.90226394]
[1768352518900,0.67910163,144.92,144.88,10.12639126]
[1768352519229,0.67910163,144.92,144.86,29.83782133]
[1768352519230,0.67910163,144.91,144.86,13.24542009]
[1768352519504,0.67910163,144.9,144.86,12.58]
[1768352519998,0.67910163,144.9,144.86,20.14831654]
[1768352520903,0.67910163,144.92,144.87,0.66542009]
[1768352521217,0.67910163,144.92,144.86,39.96506601]
[1768352522295,0.67910163,144.92,144.86,37.40635878]
[1768352522296,0.67910163,144.91,144.86,37.40635878]
[1768352522509,0.67910163,144.91,144.86,39.96506601]
[1768352522886,0.67910163,144.91,144.86,20.14831654]
[1768352523101,0.67910163,144.9,144.86,19.48289645]
[1768352523410,0.67910163,144.9,144.86,12.58]
[1768352523993,0.67910163,144.88,144.86,12.58]
[1768352524905,0.67910163,144.9,144.86,12.58]
[1768352525102,0.68267826,144.89,144.86,12.58]
[1768352526718,0.68267826,144.86,144.81,0.68618593]
[1768352527003,0.68267826,144.84,144.79,20.17247118]
[1768352527183,0.68267826,144.84,144.79,19.48628525]
[1768352527393,0.65267827,144.84,144.79,19.48628525]
[1768352527591,2.55870723,144.84,144.79,19.48628525]
[1768352527790,2.55870723,144.83,144.79,12.58]
[1768352528002,71.24527744,144.89,144.79,12.58]
[1768352528201,2.55870723,144.83,144.79,12.58]
[1768352529309,9.46359947,144.83,144.79,12.58]
[1768352529512,3.24138549,144.82,144.79,12.58]
[1768352529702,3.2113855,144.82,144.79,12.58]
[1768352530091,0.65267827,144.82,144.79,12.58]
[1768352530390,17.25721498,144.87,144.8,0.68618593]
[1768352530607,2.55870723,144.85,144.8,0.68618593]
[1768352531312,4.00132781,144.86,144.8,0.68618593]
[1768352531696,0.68267826,144.84,144.8,0.68618593]
[1768352532799,0.68267826,144.84,144.8,7.5921956]
[1768352532992,0.68267826,144.86,144.82,0.68618593]
[1768352533606,17.2544741,144.89,144.83,0.68618593]
[1768352533607,4.68400607,144.88,144.83,0.68618593]
[1768352534490,11.5863412,144.88,144.83,0.68618593]
[1768352534916,0.68267826,144.87,144.83,0.68618593]
[1768352536611,4.00132781,144.9,144.84,0.68618593]
[1768352536911,11.58502787,144.91,144.85,7.58952791]
[1768352537113,7.58370006,144.91,144.86,0.68618593]
[1768352537416,0.68267826,144.91,144.87,0.665865]
[1768352537926,104.86281653,144.92,144.88,0.665865]
[1768352538229,0.66281653,144.92,144.88,0.665865]
[1768352538804,0.66281653,144.91,144.85,20.14920698]
[1768352539122,0.66281653,144.9,144.85,20.14920698]
[1768352539797,10.8749452,144.91,144.86,0.665865]
[1768352540494,6.87361739,144.91,144.86,7.56893773]
[1768352540919,10.90180773,144.92,144.87,0.665865]
[1768352541098,6.90047992,144.92,144.87,0.665865]
[1768352541823,7.56329645,144.92,144.87,0.665865]
[1768352542313,7.56329645,144.92,144.88,0.665865]
[1768352543219,10.9013837,144.93,144.88,0.665865]
[1768352543624,11.31653507,144.93,144.88,0.665865]
[1768352544126,11.31600435,144.94,144.89,0.665865]
[1768352544302,11.31600435,144.94,144.89,7.56743973]
[1768352544692,0.66033988,144.93,144.89,0.665865]
[1768352545308,4.66166769,144.93,144.89,0.665865]
[1768352547711,0.66033988,144.93,144.89,0.665865]
[1768352548114,7.56023739,144.93,144.89,0.665865]
[1768352548923,11.5615652,144.93,144.89,0.665865]
[1768352550125,7.56023739,144.93,144.89,0.665865]
[1768352551522,4.42133416,144.9,144.86,0.665865]
[1768352552109,0.65553345,144.89,144.85,13.245865]
[1768352552421,0.65553345,144.89,144.85,20.14943303]
[1768352559533,0.65553345,144.89,144.86,0.66064026]
[1768352560734,0.42236162,144.88,144.85,13.24064026]
[1768352561035,0.42236162,144.88,144.85,12.58]
[1768352561733,0.42236162,144.88,144.85,13.24064026]
[1768352563139,0.66288823,144.89,144.85,13.24064026]
[1768352564523,7.56488376,144.89,144.85,13.24064026]
[1768352565337,0.66288823,144.91,144.86,4.66196807]
[1768352565537,0.66288823,144.91,144.87,0.66064026]
[1768352566531,0.41508038,144.9,144.87,0.66064026]
[1768352566731,0.41508038,144.9,144.86,4.00132781]
[1768352567232,0.41508038,144.9,144.86,4.66196807]
[1768352567741,7.31654207,144.9,144.86,4.66196807]
[1768352571049,6.90105653,144.91,144.87,0.66064026]
[1768352571238,7.31613691,144.91,144.87,0.66064026]
[1768352572435,7.56173392,144.9,144.87,0.66064026]
[1768352580448,6.90132376,144.9,144.87,0.60064027]
[1768352580645,7.31607725,144.91,144.87,0.60064027]
[1768352580939,0.66288823,144.9,144.87,0.60064027]
[1768352581837,7.56434072,144.9,144.87,0.60064027]
[1768352583363,7.56434072,144.9,144.86,0.66064026]
[1768352583659,0.47448037,144.89,144.86,0.66064026]
[1768352583857,0.47448037,144.89,144.86,11.56518486]
[1768352584238,0.47448037,144.89,144.86,0.66064026]
[1768352584438,0.47448037,144.89,144.86,4.66196807]
[1768352587159,0.47448037,144.89,144.86,0.66064026]
[1768352587456,0.47448037,144.89,144.86,4.66196807]
[1768352588659,0.47448037,144.89,144.86,0.66064026]
[1768352589668,0.65760745,144.88,144.85,12.58]
[1768352589865,0.47970835,144.87,144.81,0.65741472]
[1768352590045,0.47970835,144.87,144.81,7.56281548]
[1768352590364,0.47970835,144.87,144.81,11.56414329]
[1768352590543,0.47970835,144.87,144.83,4.00132781]
[1768352590747,0.47970835,144.87,144.82,11.56380375]
[1768352590948,0.65582846,144.86,144.83,0.65741472]
[1768352591360,0.65582846,144.86,144.83,4.65874253]
[1768352591956,0.65582846,144.86,144.83,0.65741472]
[1768352592346,7.55908939,144.86,144.82,4.65874253]
[1768352592868,0.48146955,144.85,144.82,4.00132781]
[1768352593460,0.48146955,144.85,144.82,2.56025954]
[1768352593667,0.48146955,144.85,144.81,7.56283703]
[1768352594169,0.48146955,144.85,144.82,3.21767426]
[1768352594362,0.65760745,144.86,144.82,10.1227653]
[1768352594560,0.65760745,144.86,144.83,3.21767426]
[1768352605987,7.56089059,144.86,144.83,3.21767426]
[1768352608681,0.47970835,144.85,144.8,12.58]
[1768352608869,0.47970835,144.85,144.81,0.69420969]
[1768352610698,6.90417011,144.84,144.81,0.69420969]
[1768352610875,24.64283153,144.85,144.81,0.69420969]
[1768352611970,0.65458018,144.84,144.81,0.69420969]
[1768352612873,7.55889958,144.84,144.81,0.69420969]
[1768352613790,7.55889958,144.84,144.8,15.83446923]
[1768352614091,7.55889958,144.84,144.8,13.27420969]
[1768352614393,7.55889958,144.84,144.81,0.69420969]
[1768352615099,7.55889958,144.84,144.8,12.58]
[1768352615100,0.48270534,144.83,144.8,12.58]
[1768352615468,0.71387321,144.87,144.81,0.70761569]
[1768352615796,7.61537616,144.9,144.86,3.26787523]
[1768352616091,7.61537616,144.9,144.86,3.20787525]
[1768352617393,7.61537616,144.9,144.86,2.56025954]
[1768352617996,7.61537616,144.9,144.87,0.70761569]
[1768352618496,0.71387321,144.92,144.89,0.70761569]
[1768352618677,0.71387321,144.92,144.89,0.65242252]
[1768352619490,7.61424538,144.92,144.89,3.21268206]
[1768352620077,7.61424538,144.92,144.89,0.65242252]
[1768352620790,0.53804646,144.91,144.88,2.56025954]
[1768352621191,0.53804646,144.91,144.88,3.26787523]
[1768352621391,0.71387321,144.93,144.88,3.26787523]
[1768352622186,0.71387321,144.93,144.88,0.70761569]
[1768352622480,0.71387321,144.93,144.88,3.26787523]
[1768352622691,7.43840527,144.92,144.88,3.26787523]
[1768352624311,7.43840527,144.92,144.89,0.70761569]
[1768352624795,7.61280387,144.95,144.9,0.70761569]
[1768352624987,7.61280387,144.95,144.9,2.56025954]
[1768352625581,0.59744645,144.94,144.88,6.90205884]
[1768352625782,0.59744645,144.94,144.89,2.56025954]
[1768352625977,0.59744645,144.94,144.89,9.46201951]
[1768352626190,0.71387321,144.99,144.93,2.56025954]
[1768352626499,0.59744645,144.98,144.94,2.56025954]
[1768352627292,0.59744645,144.98,144.93,3.26787523]
[1768352627498,0.59744645,144.98,144.94,2.56025954]
[1768352627677,0.59744645,144.98,144.95,3.26787523]
[1768352627872,7.61061993,145.0,144.96,2.56025954]
[1768352629402,0.65684642,144.99,144.96,2.56025954]
[1768352629610,6.89674672,145.0,144.96,2.56025954]
[1768352629800,6.89674672,145.0,144.96,3.26787523]
[1768352629981,7.55359314,145.0,144.96,3.26787523]
[1768352632100,7.55359314,145.0,144.96,0.70761569]
[1768352633807,0.71330294,144.99,144.96,0.70761569]
[1768352634010,3.27356248,144.99,144.96,0.70761569]
[1768352634209,0.71330294,144.99,144.93,0.70761569]
[1768352634507,0.71330294,144.99,144.94,0.70761569]
[1768352635810,0.65741099,144.98,144.94,7.60696839]
[1768352636113,0.65741099,144.98,144.95,0.70761569]
[1768352636410,7.61057205,145.0,144.95,0.70761569]
[1768352636611,0.65684642,144.99,144.95,0.70761569]
[1768352637491,7.55393553,144.99,144.95,0.70761569]
[1768352638400,7.55393553,144.99,144.96,0.70761569]
[1768352638401,0.65684642,144.99,144.96,0.70761569]
[1768352638590,7.61053748,145.0,144.96,0.70761569]
[1768352638790,7.61016096,145.01,144.96,0.70761569]
[1768352639318,0.65684642,145.0,144.96,0.70761569]
[1768352639709,7.55365855,145.0,144.96,0.70761569]
[1768352640401,2.56025954,145.01,144.96,0.70761569]
[1768352640609,0.71387321,145.01,144.97,0.70761569]
[1768352640803,10.26977665,145.02,144.97,0.70761569]
[1768352641015,7.70951711,145.02,144.97,0.70761569]
[1768352641795,7.70951711,145.02,144.98,0.70761569]
[1768352642208,0.1,145.02,144.99,0.70761569]
[1768352642608,0.1,145.02,145.0,0.70761569]
[1768352648221,0.1,145.02,145.0,0.70761569]
[1768352649822,0.7889255,145.02,144.99,13.27101443]
[1768352652119,0.1,145.02,145.0,0.69101443]
[1768352656619,0.1,145.04,145.01,0.69101443]
[1768352657004,0.1,145.06,145.04,0.69101443]
[1768352657212,0.1,145.06,145.03,3.99061838]
[1768352657520,0.1,145.06,145.03,10.88556163]
[1768352658122,0.7575203,145.06,145.02,16.57061838]
[1768352658320,0.7575203,145.06,145.02,23.4661688]
[1768352658913,0.1,145.06,145.02,23.4661688]
[1768352659214,0.1,145.06,145.03,0.72350539]
[1768352660126,0.7575203,145.06,145.03,0.72350539]
[1768352660627,6.99338031,145.07,145.05,4.71412377]
[1768352660628,0.1,145.07,145.05,4.71412377]
[1768352662410,0.1,145.07,145.05,0.72350539]
[1768352663122,0.7575203,145.07,145.04,0.72350539]
[1768352663909,0.7575203,145.07,145.04,4.71412377]
[1768352665319,0.7575203,145.07,145.04,0.72350539]
[1768352665518,0.7575203,145.07,145.03,4.71412377]
[1768352667426,0.7575203,145.07,145.04,4.71412377]
[1768352669113,0.1,145.07,145.05,4.71412377]
[1768352670439,0.1,145.09,145.06,4.71412377]
[1768352670644,0.1,145.09,145.07,3.99061838]
[1768352670821,0.1,145.09,145.07,3.93061842]
[1768352671617,0.1,145.09,145.06,4.71412377]
[1768352672638,7.64979534,145.09,145.06,4.71412377]
[1768352675222,6.89111039,145.12,145.08,4.6730197]
[1768352675444,0.69294869,145.11,145.08,4.6730197]
[1768352676141,0.69294869,145.11,145.09,3.99061838]
[1768352676437,0.69294869,145.11,145.08,3.99061838]
[1768352678428,0.69294869,145.12,145.09,3.99061838]
[1768352679033,7.68339777,145.13,145.09,4.6730197]
[1768352679340,0.69294869,145.12,145.09,4.6730197]
[1768352679537,7.58393576,145.12,145.09,3.99061838]
[1768352681133,7.08393576,145.12,145.09,3.99061838]
[1768352684321,7.08393576,145.12,145.09,4.6730197]
[1768352685138,6.89098707,145.12,145.09,4.6730197]
[1768352685333,6.58393576,145.12,145.09,4.6730197]
[1768352686928,6.58393576,145.12,145.09,0.68240132]
[1768352687139,6.58393576,145.12,145.09,4.6730197]
[1768352687343,6.93187817,145.12,145.09,4.6730197]
[1768352688842,0.68949862,145.11,145.08,12.56]
[1768352689044,0.68611722,145.09,145.04,4.6730197]
[1768352689249,0.69294869,145.1,145.06,4.6730197]
[1768352690325,0.69294869,145.1,145.07,4.6730197]
[1768352691530,0.69294869,145.1,145.06,4.6730197]
[1768352692559,7.58478747,145.1,145.06,4.6730197]
[1768352695351,7.58478747,145.1,145.07,3.99061838]
[1768352695640,7.58478747,145.1,145.06,0.68240132]
[1768352695641,0.79294869,145.13,145.09,4.6730197]
[1768352695846,0.79294869,145.13,145.1,3.93061838]
[1768352696030,0.79294869,145.13,145.1,3.89852474]
[1768352696223,0.79294869,145.13,145.09,3.99061838]
[1768352696447,7.68351363,145.13,145.09,3.99061838]
[1768352697248,0.40734236,145.12,145.09,3.99061838]
[1768352697644,0.40734236,145.12,145.08,3.99061838]
[1768352697827,0.40734236,145.12,145.08,4.6730197]
[1768352698027,0.40734236,145.12,145.09,0.68240132]
[1768352698228,0.1,145.13,145.1,0.68240132]
[1768352698446,6.99039753,145.13,145.1,0.68240132]
[1768352698648,0.1,145.13,145.11,4.6730197]
[1768352698948,0.1,145.13,145.12,0.68240132]
[1768352700154,5.98990089,145.14,145.12,0.68240132]
[1768352700448,0.1,145.15,145.13,4.6730197]
[1768352701231,0.1,145.15,145.13,3.99061838]
[1768352701426,0.1,145.15,145.13,4.6730197]
[1768352702044,0.1,145.15,145.12,4.6730197]
[1768352702352,0.1,145.15,145.13,4.6730197]
[1768352703454,0.1,145.18,145.15,0.68240132]
[1768352703654,0.1,145.2,145.18,0.68240132]
[1768352703954,0.1,145.24,145.2,0.62240132]
[1768352704157,0.1,145.24,145.22,3.99061838]
[1768352704557,0.69294869,145.26,145.23,3.99061838]
[1768352704737,19.54355456,145.28,145.25,3.99061838]
[1768352704738,0.79294869,145.28,145.25,3.99061838]
[1768352704937,0.79294869,145.28,145.25,3.93061838]
[1768352705852,0.69205123,145.27,145.24,3.99061838]
[1768352706034,0.69205123,145.27,145.25,3.99061838]
[1768352706233,0.1,145.28,145.25,4.658397]
[1768352706449,0.1,145.28,145.26,3.99061838]
[1768352706658,0.1,145.28,145.26,4.658397]
[1768352706839,0.1,145.28,145.27,3.99061838]
[1768352707245,0.1,145.28,145.26,4.658397]
[1768352707763,0.1,145.28,145.27,3.99061838]
[1768352708257,0.6923208,145.32,145.27,4.658397]
[1768352708436,7.57415962,145.31,145.27,4.658397]
[1768352709239,0.6923208,145.31,145.27,4.658397]
[1768352709558,7.57322704,145.33,145.3,3.99061838]
[1768352709762,0.6923208,145.32,145.28,3.99061838]
[1768352710133,0.6923208,145.31,145.26,0.66777862]
[1768352710764,7.57463325,145.3,145.26,0.66777862]
[1768352711276,0.6923208,145.35,145.3,0.66777862]
[1768352711645,7.57179245,145.36,145.32,4.658397]
[1768352712164,0.6923208,145.35,145.3,0.66777862]
[1768352712368,0.6923208,145.35,145.3,4.658397]
[1768352712738,0.6923208,145.33,145.3,3.99061838]
[1768352712942,0.6923208,145.33,145.3,4.658397]
[1768352713141,7.57273912,145.34,145.3,0.66777862]
[1768352713364,0.6923208,145.33,145.29,3.99061838]
[1768352713546,0.6923208,145.33,145.29,4.658397]
[1768352713864,0.6923208,145.33,145.3,3.99061838]
[1768352714062,0.6923208,145.33,145.29,0.66777862]
[1768352714383,0.6923208,145.33,145.3,3.99061838]
[1768352714965,0.6923208,145.35,145.31,4.658397]
[1768352715163,6.87865517,145.38,145.35,0.66777862]
[1768352715458,7.5705289,145.39,145.35,3.20924263]
[1768352715873,0.6923208,145.38,145.31,0.66777862]
[1768352716065,0.6923208,145.37,145.33,0.66777862]
[1768352716260,0.6923208,145.37,145.33,3.20924263]
[1768352716557,0.6923208,145.39,145.36,3.20924263]
[1768352716746,24.76394402,145.4,145.36,0.66777862]
[1768352718065,6.87852524,145.38,145.35,2.54146401]
[1768352718250,6.87852524,145.38,145.35,3.21941419]
[1768352718452,0.02179585,145.39,145.34,0.67795018]
[1768352718666,0.02179585,145.39,145.34,3.21941419]
[1768352719373,0.02179585,145.39,145.35,0.67795018]
[1768352719562,0.02179585,145.39,145.35,3.21941419]
[1768352719744,0.02179585,145.39,145.35,0.67795018]
[1768352719949,0.7211948,145.38,145.33,3.21941419]
[1768352720158,0.7211948,145.38,145.34,0.67795018]
[1768352720354,0.7211948,145.38,145.33,3.21941419]
[1768352720548,0.7211948,145.37,145.33,0.67795018]
[1768352721165,0.7211948,145.37,145.33,3.21941419]
[1768352721546,0.7211948,145.39,145.36,2.54146401]
[1768352721752,6.87789612,145.4,145.36,3.21941419]
[1768352722176,7.59909092,145.4,145.36,3.21941419]
[1768352722956,6.87789612,145.4,145.37,3.21941419]
[1768352723373,7.59909092,145.4,145.37,3.21941419]
[1768352723555,7.59909092,145.4,145.37,0.67795018]
[1768352724371,0.7211948,145.4,145.36,3.21941419]
[1768352724770,7.59883151,145.4,145.36,3.21941419]
[1768352725582,6.87763671,145.4,145.37,0.67795018]
[1768352725871,6.87722578,145.41,145.38,0.67795018]
[1768352726454,0.7211948,145.42,145.38,3.21941419]
[1768352727265,0.7211948,145.42,145.38,0.67795018]
[1768352727459,0.7211948,145.42,145.38,3.21941419]
[1768352727665,0.7211948,145.42,145.39,3.21941419]
[1768352727892,0.7211948,145.41,145.37,0.67795018]
[1768352728564,7.59862602,145.41,145.37,0.67795018]
[1768352730381,7.59862602,145.41,145.37,0.61799359]
[1768352730786,6.87743122,145.41,145.37,2.54146401]
[1768352731169,8.05175896,145.44,145.37,6.87895923]
[1768352731374,8.05175896,145.44,145.39,2.54146401]
[1768352731677,8.05175896,145.44,145.37,6.87895923]
[1768352731678,27.78244189,145.44,145.36,6.87926658]
[1768352731859,0.7211948,145.43,145.38,2.54146401]
[1768352732289,3.26265881,145.42,145.37,0.67795018]
[1768352732460,0.7211948,145.4,145.35,0.67795018]
[1768352732663,0.7211948,145.38,145.33,0.67795018]
[1768352732966,0.7211948,145.38,145.32,12.54]
[1768352732967,6.87805213,145.39,145.35,3.21941419]